fUSD/lending_fUSD_20260625
["ID","MTS","AMOUNT","RATE_DAILY","PERIOD"]
[426416516,1782364233000,-500.0,0.00014899,2]
[426416518,1782364233000,-247.15557358,0.00014899,2]
[426416517,1782364233000,-167.91871466,0.00014899,2]
[426416519,1782364233000,-2642.36652079,0.000149,5]
[426416515,1782364233000,-500.0,0.00014899,2]
[426416520,1782364233000,-1855.39247416,0.000149,5]
[426416522,1782364233000,-4279.0,0.000149,5]
[426416521,1782364233000,-1104.24100505,0.000149,5]
[426416524,1782364233000,-423.4821003,0.000149,2]
[426416526,1782364233000,-6198.44125703,0.000149,2]
[426416525,1782364233000,-8173.23656239,0.000149,2]
[426416527,1782364233000,-4261.1042238,0.000149,2]
[426416528,1782364233000,-803.64912506,0.000149,2]
[426416529,1782364233000,-549.58460309,0.000149,2]
[426416472,1782364233000,-137.13311412,0.00014899,2]
[426416503,1782364233000,-500.0,0.00014899,2]
[426416510,1782364233000,-500.0,0.00014899,2]
[426416496,1782364233000,-500.0,0.00014899,2]
[426416474,1782364233000,-91.16258937,0.00014899,2]
[426416475,1782364233000,-408.83741063,0.00014899,2]
[426416478,1782364233000,-544.34888907,0.00014899,2]
[426416477,1782364233000,-178.72120412,0.00014899,2]
[426416488,1782364233000,-500.0,0.00014899,2]
[426416486,1782364233000,-500.0,0.00014899,2]
[426416489,1782364233000,-500.0,0.00014899,2]
[426416487,1782364233000,-500.0,0.00014899,2]
[426416479,1782364233000,-500.0,0.00014899,2]
[426416480,1782364233000,-500.0,0.00014899,2]
[426416483,1782364233000,-500.0,0.00014899,2]
[426416490,1782364233000,-500.0,0.00014899,2]
[426416485,1782364233000,-500.0,0.00014899,2]
[426416482,1782364233000,-500.0,0.00014899,2]
[426416484,1782364233000,-500.0,0.00014899,2]
[426416493,1782364233000,-500.0,0.00014899,2]
[426416491,1782364233000,-500.0,0.00014899,2]
[426416494,1782364233000,-500.0,0.00014899,2]
[426416492,1782364233000,-500.0,0.00014899,2]
[426416497,1782364233000,-368.15837614,0.00014899,2]
[426416495,1782364233000,-500.0,0.00014899,2]
[426416499,1782364233000,-500.0,0.00014899,2]
[426416500,1782364233000,-362.85066782,0.00014899,2]
[426416498,1782364233000,-131.84162386,0.00014899,2]
[426416501,1782364233000,-137.14933218,0.00014899,2]
[426416481,1782364233000,-500.0,0.00014899,2]
[426416548,1782364238000,-314.48,0.00014336,2]
[426416547,1782364238000,-314.48,0.00014123,2]
[426416549,1782364238000,-314.48,0.00014548,2]
[426416550,1782364238000,-314.48,0.0001476,2]
[426416553,1782364238000,-4275.43278028,0.000149,2]
[426416552,1782364238000,-543.80863112,0.000149,2]
[426416551,1782364238000,-174.80139523,0.000149,2]
[426416557,1782364240000,-2000.0,0.000149,2]
[426416556,1782364240000,-6505.46589877,0.000149,2]
[426416560,1782364240000,-70899.32315044,0.000149,2]
[426416559,1782364240000,-136168.9699792,0.000149,2]
[426416558,1782364240000,-2288.30001762,0.000149,2]
[426416562,1782364240000,-599.0926552,0.000149,2]
[426416563,1782364240000,-288.77418684,0.000149,2]
[426416564,1782364240000,-1062.90574308,0.000149,2]
[426416565,1782364240000,-733.3777153,0.000149,2]
[426416561,1782364240000,-895791.95398425,0.000149,2]
[426416571,1782364241000,-1219.4810845,0.000149,2]
[426416570,1782364241000,-256.41677732,0.000149,2]
[426416568,1782364241000,-2877.10776756,0.000149,2]
[426416582,1782364243000,-204269.79268793,0.000149,2]
[426416581,1782364243000,-131495.95163611,0.000149,2]
[426416586,1782364246000,-300.37974651,0.000149,2]
[426416587,1782364246000,-3501.85717142,0.000149,2]
[426416588,1782364246000,-319.0,0.000149,2]
[426416589,1782364246000,-2992.37573061,0.000149,2]
[426416590,1782364246000,-642.10071989,0.000149,2]
[426416592,1782364290000,1664.01,0.00031258,30]
[426416593,1782364305000,152.64,0.00029931,30]
[426416594,1782364316000,232.81,0.00029931,30]
[426416639,1782365431000,-166.66,0.00013054,2]
[426416640,1782365431000,-170.53,0.00013281,2]
[426416642,1782365431000,-3314.32,0.00013301,2]
[426416641,1782365431000,-150.0,0.00013291,2]
[426416644,1782365431000,-500.0,0.00013364,2]
[426416647,1782365431000,-500.0,0.00013364,2]
[426416645,1782365431000,-500.0,0.00013364,2]
[426416638,1782365431000,-163.82,0.00013054,2]
[426416648,1782365431000,-500.0,0.00013364,2]
[426416649,1782365431000,-500.0,0.00013364,2]
[426416650,1782365431000,-500.0,0.00013364,2]
[426416643,1782365431000,-166.66,0.00013323,2]
[426416637,1782365431000,-166.66,0.00012785,2]
[426416625,1782365431000,-153.0,0.00011142,2]
[426416635,1782365431000,-128.56634967,0.00012754,2]
[426416634,1782365431000,-314.49,0.00011699,2]
[426416632,1782365431000,-203.14286769,0.00011328,2]
[426416633,1782365431000,-111.34713231,0.00011328,2]
[426416629,1782365431000,-160.0,0.0001115,2]
[426416628,1782365431000,-153.0,0.00011142,2]
[426416630,1782365431000,-160.0,0.0001115,2]
[426416631,1782365431000,-238.52270823,0.00011217,7]
[426416627,1782365431000,-153.69078989,0.00011142,2]
[426416626,1782365431000,-160.31333419,0.00011142,2]
[426416624,1782365431000,-314.49,0.00010956,2]
[426416623,1782365431000,-314.49,0.00010585,2]
[426416654,1782365431000,-500.0,0.00013364,2]
[426416636,1782365431000,-37.27365033,0.00012754,2]
[426416652,1782365431000,-500.0,0.00013364,2]
[426416646,1782365431000,-500.0,0.00013364,2]
[426416653,1782365431000,-500.0,0.00013364,2]
[426416651,1782365431000,-500.0,0.00013364,2]
[426416692,1782365431000,-500.0,0.00013364,2]
[426416690,1782365431000,-500.0,0.00013364,2]
[426416689,1782365431000,-500.0,0.00013364,2]
[426416688,1782365431000,-500.0,0.00013364,2]
[426416687,1782365431000,-500.0,0.00013364,2]
[426416683,1782365431000,-477.06876305,0.00013364,2]
[426416684,1782365431000,-500.0,0.00013364,2]
[426416681,1782365431000,-500.0,0.00013364,2]
[426416686,1782365431000,-500.0,0.00013364,2]
[426416682,1782365431000,-500.0,0.00013364,2]
[426416680,1782365431000,-500.0,0.00013364,2]
[426416679,1782365431000,-500.0,0.00013364,2]
[426416678,1782365431000,-500.0,0.00013364,2]
[426416685,1782365431000,-500.0,0.00013364,2]
[426416663,1782365431000,-500.0,0.00013364,2]
[426416655,1782365431000,-500.0,0.00013364,2]
[426416656,1782365431000,-500.0,0.00013364,2]
[426416677,1782365431000,-500.0,0.00013364,2]
[426416657,1782365431000,-500.0,0.00013364,2]
[426416691,1782365431000,-500.0,0.00013364,2]
[426416668,1782365431000,-500.0,0.00013364,2]
[426416658,1782365431000,-500.0,0.00013364,2]
[426416672,1782365431000,-500.0,0.00013364,2]
[426416666,1782365431000,-500.0,0.00013364,2]
[426416675,1782365431000,-500.0,0.00013364,2]
[426416660,1782365431000,-500.0,0.00013364,2]
[426416676,1782365431000,-500.0,0.00013364,2]
[426416662,1782365431000,-500.0,0.00013364,2]
[426416700,1782365432000,-359.22,0.00013365,2]
[426416695,1782365432000,-500.0,0.00013364,2]
[426416694,1782365432000,-500.0,0.00013364,2]
[426416696,1782365432000,-500.0,0.00013364,2]
[426416693,1782365432000,-500.0,0.00013364,2]
[426416699,1782365432000,-500.0,0.00013364,2]
[426416698,1782365432000,-150.0,0.00013364,2]
[426416697,1782365432000,-500.0,0.00013364,2]
[426416701,1782365432000,-2103.58,0.00013454,2]
[426416705,1782365432000,-310.0,0.00013697,2]
[426416702,1782365432000,-165.6,0.0001352,2]
[426416710,1782365432000,-84364.69871391,0.00013761,2]
[426416709,1782365432000,-150.0,0.0001376,2]
[426416706,1782365432000,-200.0,0.00013699,2]
[426416703,1782365432000,-166.66,0.00013592,2]
[426416704,1782365432000,-151.0,0.00013697,2]
[426416707,1782365432000,-1984.19,0.00013699,2]
[426416708,1782365432000,-3959.0751211,0.00013736,2]
[426416711,1782365432000,-3403.28544382,0.00013761,2]
[426416712,1782365432000,-3462.64155833,0.00013761,2]
[426416755,1782365439000,-34105.70999343,0.00013761,2]
[426416754,1782365439000,-309.0,0.00013761,2]
[426416763,1782365440000,-150.0,0.00013886,2]
[426416769,1782365440000,-152.0,0.00014112,2]
[426416770,1782365440000,-152.0,0.00014112,2]
[426416772,1782365440000,-166.66,0.00014131,2]
[426416768,1782365440000,-317.0,0.00014112,2]
[426416766,1782365440000,-250.0,0.00014,2]
[426416767,1782365440000,-3959.07512103,0.00014069,2]
[426416764,1782365440000,-3959.07512103,0.00013902,2]
[426416757,1782365440000,-500.0,0.00013836,2]
[426416762,1782365440000,-150.0,0.00013886,2]
[426416760,1782365440000,-462.53529276,0.00013836,2]
[426416761,1782365440000,-166.66,0.00013862,2]
[426416759,1782365440000,-500.0,0.00013836,2]
[426416758,1782365440000,-500.0,0.00013836,2]
[426416756,1782365440000,-1374663.66429051,0.00013761,2]
[426416773,1782365440000,-250.0,0.00014149,2]
[426416765,1782365440000,-181.654299,0.00014,2]
[426416777,1782365440000,-317.0,0.00014412,2]
[426416775,1782365440000,-151.0,0.00014412,2]
[426416792,1782365440000,-246681.71740597,0.000146,2]
[426416793,1782365440000,-2648.17058701,0.000146,2]
[426416784,1782365440000,-311.0,0.00014413,2]
[426416787,1782365440000,-309.0,0.00014424,2]
[426416789,1782365440000,-312.0,0.00014446,2]
[426416786,1782365440000,-151.0,0.00014416,2]
[426416791,1782365440000,-153.0,0.00014515,2]
[426416782,1782365440000,-239.59034079,0.00014413,2]
[426416788,1782365440000,-152.0,0.00014429,2]
[426416790,1782365440000,-312.0,0.00014467,2]
[426416783,1782365440000,-151.0,0.00014413,2]
[426416785,1782365440000,-321.0,0.00014415,2]
[426416774,1782365440000,-3959.07512103,0.00014235,2]
[426416771,1782365440000,-248.41787737,0.00014112,2]
[426416778,1782365440000,-151.0,0.00014412,2]
[426416781,1782365440000,-338.63341566,0.00014413,2]
[426416779,1782365440000,-313.0,0.00014412,2]
[426416780,1782365440000,-310.0,0.00014412,2]
[426416776,1782365440000,-150.0,0.00014412,2]
[426416809,1782365445000,-250.67,0.00014401,2]
[426416807,1782365445000,-153.0,0.00013761,2]
[426416810,1782365446000,-310.0,0.00014345,2]
[426416814,1782365446000,-2762.09450576,0.000146,2]
[426416811,1782365446000,-3708.40512103,0.00014401,2]
[426416813,1782365446000,-10296.2734184,0.000146,2]
[426416816,1782365446000,-250.0,0.000146,2]
[426416812,1782365446000,-201.9577244,0.00014508,2]
[426416815,1782365446000,-3509.59403262,0.000146,2]
[426416818,1782365480000,1525.34,0.0003132,30]
[426416824,1782365540000,151.0,0.00028701,30]
[426416825,1782365541000,151.0,0.00029701,30]
[426416826,1782365542000,151.0,0.00030701,30]
[426416827,1782365561000,158.0,0.00028701,30]
[426416828,1782365563000,158.0,0.00029701,30]
[426416829,1782365564000,158.0,0.00030701,30]
[426416830,1782365583000,155.0,0.00028701,30]
[426416831,1782365584000,162.0,0.00029701,30]
[426416832,1782365605000,195.0,0.00028701,30]
[426416833,1782365606000,195.0,0.00029701,30]
[426416834,1782365607000,195.0,0.00030701,30]
[426416835,1782365639000,248.0,0.00028701,30]
[426416836,1782365640000,248.0,0.00029701,30]
[426416837,1782365642000,248.0,0.00030701,30]
[426416838,1782365668000,2091.94,0.00031507,30]
[426416839,1782365674000,162.0,0.00028701,30]
[426416840,1782365675000,168.50414315,0.00029701,30]
[426416841,1782365677000,169.0,0.0003139,30]
[426416842,1782365693000,163.0,0.00028701,30]
[426416843,1782365695000,167.69497744,0.00029701,30]
[426416844,1782365713000,163.0,0.00028701,30]
[426416845,1782365714000,163.0,0.00029701,30]
[426416846,1782365716000,163.0,0.00030701,30]
[426416847,1782365748000,164.0,0.00028701,30]
[426416848,1782365750000,164.0,0.00029701,30]
[426416849,1782365751000,166.20718968,0.00030701,30]
[426416850,1782365769000,151.0,0.00028701,30]
[426416851,1782365770000,151.0,0.00029701,30]
[426416852,1782365771000,151.0,0.00030701,30]
[426416853,1782365791000,193.0,0.00028701,30]
[426416854,1782365792000,193.0,0.00029701,30]
[426416855,1782365794000,193.0,0.00030701,30]
[426416857,1782365858000,151.0,0.00028698,30]
[426416858,1782365860000,151.0,0.00029698,30]
[426416859,1782365861000,151.0,0.00030698,30]
[426416860,1782365887000,153.0,0.00028698,30]
[426416862,1782365888000,-161.4,0.00012171,2]
[426416861,1782365888000,153.45176185,0.00029698,30]
[426416863,1782365888000,-151.0,0.00012171,2]
[426416866,1782365888000,-310.0,0.00012171,2]
[426416865,1782365888000,-316.0,0.00012171,2]
[426416868,1782365888000,-318.0,0.00012172,2]
[426416864,1782365888000,-313.0,0.00012171,2]
[426416867,1782365888000,-151.0,0.00012172,2]
[426416870,1782365889000,-314.0,0.00012173,2]
[426416869,1782365889000,-151.0,0.00012172,2]
[426416872,1782365889000,-321.0,0.00012176,2]
[426416871,1782365889000,-317.0,0.00012175,2]
[426416873,1782365889000,-151.0,0.00012177,2]
[426416875,1782365889000,-316.0,0.00012183,2]
[426416876,1782365889000,-321.0,0.00012187,2]
[426416878,1782365889000,-150.0,0.00012198,2]
[426416877,1782365889000,-319.0,0.00012187,2]
[426416879,1782365889000,-393.29,0.00012198,2]
[426416890,1782365889000,-240.65,0.00012308,2]
[426416881,1782365889000,-318.0,0.0001221,2]
[426416880,1782365889000,-318.0,0.0001221,2]
[426416888,1782365889000,-312.0,0.00012306,2]
[426416887,1782365889000,-150.0,0.00012304,2]
[426416886,1782365889000,-310.0,0.00012304,2]
[426416889,1782365889000,-152.0,0.00012308,2]
[426416885,1782365889000,-315.0,0.00012304,2]
[426416883,1782365889000,-150.0,0.00012304,2]
[426416882,1782365889000,-166.66,0.00012303,2]
[426416884,1782365889000,-321.0,0.00012304,2]
[426416874,1782365889000,-314.0,0.00012183,2]
[426416891,1782365924000,2165.74,0.00030951,30]
[426416894,1782366507000,157.59822564,0.00028699,30]
[426416895,1782366526000,163.0,0.00028699,30]
[426416908,1782366569000,166.0,0.00028699,30]
[426416909,1782366570000,166.0,0.00029699,30]
[426416910,1782366572000,166.0,0.00030699,30]
[426416911,1782366613000,211.0,0.00028699,30]
[426416912,1782366614000,211.0,0.00029699,30]
[426416913,1782366615000,211.0,0.00030699,30]
[426416947,1782366631000,-1300.0,0.00011611,2]
[426416921,1782366631000,-152.0,0.00010744,2]
[426416923,1782366631000,-149.7008305,0.00010744,2]
[426416920,1782366631000,-153.0,0.00010744,2]
[426416922,1782366631000,-0.2991695,0.00010744,2]
[426416924,1782366631000,-151.0,0.00010744,2]
[426416928,1782366631000,-151.0,0.00010744,2]
[426416926,1782366631000,-151.0,0.00010744,2]
[426416927,1782366631000,-151.0,0.00010744,2]
[426416925,1782366631000,-150.0,0.00010744,2]
[426416929,1782366631000,-152.0,0.00010744,2]
[426416930,1782366631000,-152.0,0.00010744,2]
[426416933,1782366631000,-152.0,0.00010744,2]
[426416931,1782366631000,-152.0,0.00010744,2]
[426416932,1782366631000,-151.0,0.00010744,2]
[426416943,1782366631000,-8115.6113695,0.00011611,2]
[426416945,1782366631000,-6055.40711312,0.00011611,2]
[426416946,1782366631000,-5880.0,0.00011611,2]
[426416944,1782366631000,-1786.02537,0.00011611,2]
[426416942,1782366631000,-166.66,0.00011393,2]
[426416935,1782366631000,-152.0,0.00010744,2]
[426416941,1782366631000,-166.66,0.00011158,2]
[426416948,1782366631000,-994.3940699,0.00011611,2]
[426416940,1782366631000,-151.0,0.00010744,2]
[426416938,1782366631000,-150.0,0.00010744,2]
[426416937,1782366631000,-151.0,0.00010744,2]
[426416934,1782366631000,-150.0,0.00010744,2]
[426416936,1782366631000,-151.0,0.00010744,2]
[426416939,1782366631000,-150.0,0.00010744,2]
[426416949,1782366632000,-234.65714631,0.0001161,2]
[426416950,1782366632000,-57.65253249,0.0001161,2]
[426416951,1782366632000,-442.34746751,0.0001161,2]
[426416952,1782366632000,-500.0,0.0001161,2]
[426416953,1782366632000,-282.71568383,0.0001161,2]
[426416954,1782366632000,-172.82389939,0.0001161,2]
[426416955,1782366632000,-274.23054158,0.0001161,2]
[426417022,1782366633000,-220.96715096,0.00012171,2]
[426416996,1782366633000,-315.0,0.00012171,2]
[426416994,1782366633000,-150.0,0.00012171,2]
[426416992,1782366633000,-314.0,0.00012171,2]
[426417000,1782366633000,-1000.0,0.00012171,2]
[426416997,1782366633000,-500.0,0.00012171,2]
[426416998,1782366633000,-1000.0,0.00012171,2]
[426416999,1782366633000,-1000.0,0.00012171,2]
[426417002,1782366633000,-1000.0,0.00012171,2]
[426417001,1782366633000,-1000.0,0.00012171,2]
[426417003,1782366633000,-1000.0,0.00012171,2]
[426417005,1782366633000,-1000.0,0.00012171,2]
[426417004,1782366633000,-1000.0,0.00012171,2]
[426417006,1782366633000,-1000.0,0.00012171,2]
[426417007,1782366633000,-1000.0,0.00012171,2]
[426417013,1782366633000,-1000.0,0.00012171,2]
[426417009,1782366633000,-1000.0,0.00012171,2]
[426417012,1782366633000,-1000.0,0.00012171,2]
[426417011,1782366633000,-1000.0,0.00012171,2]
[426417010,1782366633000,-1000.0,0.00012171,2]
[426417016,1782366633000,-1000.0,0.00012171,2]
[426417014,1782366633000,-1000.0,0.00012171,2]
[426417015,1782366633000,-1000.0,0.00012171,2]
[426417017,1782366633000,-1000.0,0.00012171,2]
[426417019,1782366633000,-1000.0,0.00012171,2]
[426417018,1782366633000,-1000.0,0.00012171,2]
[426417020,1782366633000,-1000.0,0.00012171,2]
[426417024,1782366633000,-220.96715096,0.00012171,2]
[426416995,1782366633000,-317.0,0.00012171,2]
[426417008,1782366633000,-1000.0,0.00012171,2]
[426416993,1782366633000,-315.0,0.00012171,2]
[426416989,1782366633000,-319.0,0.00012171,2]
[426416956,1782366633000,-140.49061728,0.0001161,2]
[426416957,1782366633000,-464.54907796,0.0001161,2]
[426416958,1782366633000,-500.0,0.0001161,2]
[426416959,1782366633000,-93164.19207748,0.00011611,2]
[426416960,1782366633000,-166.66,0.00011628,2]
[426416962,1782366633000,-7032.49876525,0.00012,2]
[426417025,1782366633000,-220.96715096,0.00012171,2]
[426416968,1782366633000,-311.0,0.0001217,2]
[426416964,1782366633000,-150.0,0.00012169,2]
[426416967,1782366633000,-310.0,0.0001217,2]
[426416966,1782366633000,-312.0,0.0001217,2]
[426416971,1782366633000,-315.0,0.0001217,2]
[426416963,1782366633000,-166.66,0.00012097,2]
[426416991,1782366633000,-309.0,0.00012171,2]
[426416965,1782366633000,-151.0,0.0001217,2]
[426416970,1782366633000,-316.0,0.0001217,2]
[426416972,1782366633000,-151.0,0.0001217,2]
[426416974,1782366633000,-309.0,0.0001217,2]
[426416973,1782366633000,-314.0,0.0001217,2]
[426416988,1782366633000,-315.0,0.00012171,2]
[426416984,1782366633000,-318.0,0.00012171,2]
[426416979,1782366633000,-152.0,0.00012171,2]
[426416977,1782366633000,-318.0,0.00012171,2]
[426416987,1782366633000,-151.0,0.00012171,2]
[426416982,1782366633000,-316.0,0.00012171,2]
[426416975,1782366633000,-319.0,0.00012171,2]
[426416985,1782366633000,-309.0,0.00012171,2]
[426416990,1782366633000,-153.0,0.00012171,2]
[426416969,1782366633000,-151.0,0.0001217,2]
[426417023,1782366633000,-220.96715096,0.00012171,2]
[426416961,1782366633000,-166.66,0.00011863,2]
[426417026,1782366633000,-220.96715096,0.00012171,2]
[426417061,1782366633000,-319.0,0.00012343,2]
[426417057,1782366633000,-315.0,0.00012318,2]
[426417062,1782366633000,-310.0,0.0001236,2]
[426417060,1782366633000,-166.66,0.00012332,2]
[426417063,1782366633000,-313.0,0.0001236,2]
[426417065,1782366633000,-312.0,0.00012471,2]
[426417067,1782366633000,-311.0,0.0001264,2]
[426417068,1782366633000,-310.0,0.0001264,2]
[426417070,1782366633000,-311.0,0.0001264,2]
[426417069,1782366633000,-151.0,0.0001264,2]
[426417072,1782366633000,-152.0,0.0001264,2]
[426417077,1782366633000,-320.0,0.0001264,2]
[426417075,1782366633000,-315.0,0.0001264,2]
[426417058,1782366633000,-321.0,0.00012318,2]
[426417074,1782366633000,-313.0,0.0001264,2]
[426417071,1782366633000,-317.0,0.0001264,2]
[426417076,1782366633000,-151.0,0.0001264,2]
[426417073,1782366633000,-311.0,0.0001264,2]
[426417080,1782366633000,-312.0,0.0001264,2]
[426417081,1782366633000,-321.0,0.0001264,2]
[426417079,1782366633000,-153.0,0.0001264,2]
[426417082,1782366633000,-316.0,0.0001264,2]
[426417084,1782366633000,-316.0,0.0001264,2]
[426417085,1782366633000,-315.0,0.0001264,2]
[426417087,1782366633000,-309.0,0.0001264,2]
[426417083,1782366633000,-151.0,0.0001264,2]
[426417086,1782366633000,-317.0,0.0001264,2]
[426417021,1782366633000,-220.96715096,0.00012171,2]
[426417078,1782366633000,-313.0,0.0001264,2]
[426417059,1782366633000,-151.0,0.00012322,2]
[426417066,1782366633000,-153.0,0.0001264,2]
[426417056,1782366633000,-71.35,0.00012308,2]
[426417027,1782366633000,-220.96715096,0.00012171,2]
[426417028,1782366633000,-220.96715096,0.00012171,2]
[426417029,1782366633000,-220.96715096,0.00012171,2]
[426417030,1782366633000,-220.96715096,0.00012171,2]
[426417064,1782366633000,-151.0,0.00012368,2]
[426417031,1782366633000,-152.0,0.00012171,2]
[426417034,1782366633000,-152.0,0.00012171,2]
[426417033,1782366633000,-152.0,0.00012171,2]
[426417038,1782366633000,-311.0,0.00012171,2]
[426417035,1782366633000,-295.73261565,0.00012171,2]
[426417036,1782366633000,-153.0,0.00012171,2]
[426417037,1782366633000,-151.0,0.00012171,2]
[426417039,1782366633000,-320.0,0.00012171,2]
[426417040,1782366633000,-153.0,0.00012171,2]
[426417042,1782366633000,-310.0,0.00012171,2]
[426417032,1782366633000,-152.0,0.00012171,2]
[426417043,1782366633000,-150.0,0.00012171,2]
[426417041,1782366633000,-314.0,0.00012171,2]
[426417055,1782366633000,-153.84,0.00012217,2]
[426417053,1782366633000,-12397.95,0.00012188,2]
[426417051,1782366633000,-151.26,0.00012182,2]
[426417049,1782366633000,-311.0,0.00012172,2]
[426417052,1782366633000,-4111.07,0.00012184,2]
[426417054,1782366633000,-316.0,0.00012202,2]
[426417048,1782366633000,-317.0,0.00012171,2]
[426417046,1782366633000,-318.0,0.00012171,2]
[426417047,1782366633000,-150.0,0.00012171,2]
[426417045,1782366633000,-318.0,0.00012171,2]
[426417044,1782366633000,-318.0,0.00012171,2]
[426417050,1782366633000,-318.0,0.00012176,2]
[426417106,1782366634000,-313.0,0.00012641,2]
[426417102,1782366634000,-313.0,0.00012641,2]
[426417108,1782366634000,-315.0,0.00012641,2]
[426417107,1782366634000,-152.0,0.00012641,2]
[426417105,1782366634000,-313.0,0.00012641,2]
[426417098,1782366634000,-316.0,0.00012641,2]
[426417100,1782366634000,-151.0,0.00012641,2]
[426417103,1782366634000,-319.0,0.00012641,2]
[426417099,1782366634000,-317.0,0.00012641,2]
[426417101,1782366634000,-316.0,0.00012641,2]
[426417089,1782366634000,-317.0,0.0001264,2]
[426417096,1782366634000,-317.0,0.00012641,2]
[426417097,1782366634000,-152.0,0.00012641,2]
[426417095,1782366634000,-317.0,0.00012641,2]
[426417093,1782366634000,-310.0,0.00012641,2]
[426417094,1782366634000,-314.0,0.00012641,2]
[426417092,1782366634000,-151.0,0.0001264,2]
[426417091,1782366634000,-317.0,0.0001264,2]
[426417088,1782366634000,-150.0,0.0001264,2]
[426417090,1782366634000,-317.0,0.0001264,2]
[426417111,1782366634000,-152.0,0.00012641,2]
[426417104,1782366634000,-150.0,0.00012641,2]
[426417110,1782366634000,-321.0,0.00012641,2]
[426417109,1782366634000,-311.0,0.00012641,2]
[426417112,1782366634000,-320.0,0.00012641,2]
[426417113,1782366634000,-311.0,0.00012641,2]
[426417134,1782366634000,-500.0,0.0001376,2]
[426417135,1782366634000,-500.0,0.0001376,2]
[426417131,1782366634000,-343.71827253,0.00013723,2]
[426417132,1782366634000,-500.0,0.0001376,2]
[426417133,1782366634000,-500.0,0.0001376,2]
[426417128,1782366634000,-151.0,0.00013569,2]
[426417129,1782366634000,-200.0,0.00013699,2]
[426417127,1782366634000,-49.42827253,0.00013252,2]
[426417126,1782366634000,-205.57172747,0.00013252,2]
[426417125,1782366634000,-294.42827253,0.00012972,2]
[426417130,1782366634000,-49.57172747,0.00013723,2]
[426417123,1782366634000,-150.0,0.00012641,2]
[426417114,1782366634000,-150.0,0.00012641,2]
[426417124,1782366634000,-23.57172747,0.00012972,2]
[426417116,1782366634000,-318.0,0.00012641,2]
[426417115,1782366634000,-311.0,0.00012641,2]
[426417117,1782366634000,-158.8471068,0.00012641,2]
[426417136,1782366634000,-91.9964413,0.0001376,2]
[426417118,1782366634000,-160.1528932,0.00012641,2]
[426417120,1782366634000,-301.21070886,0.00012641,2]
[426417122,1782366634000,-317.0,0.00012641,2]
[426417121,1782366634000,-14.78929114,0.00012641,2]
[426417119,1782366634000,-151.0,0.00012641,2]
[426417151,1782366638000,-500.0,0.0001376,2]
[426417140,1782366638000,-500.0,0.0001161,2]
[426417139,1782366638000,-152.0,0.00010744,2]
[426417141,1782366638000,-500.0,0.0001161,2]
[426417146,1782366638000,-73.23738962,0.0001161,2]
[426417145,1782366638000,-500.0,0.0001161,2]
[426417143,1782366638000,-425.18123314,0.0001161,2]
[426417144,1782366638000,-61.3684316,0.0001161,2]
[426417148,1782366638000,-570.67335625,0.0001161,2]
[426417149,1782366638000,-408.0035587,0.0001376,2]